Cogmind - Beta 14 @@@ ROGUE MODE // 2024.11.10 @ 18:12:35 Player: Shimmyarah Result: Destroyed by YI-UF0 with YI-UF0's Doublenader Performance ------------- Evolutions (0) 0 Regions Visited (2) 400 Robots Destroyed (21) 105 Value Destroyed (241) 241 Prototype IDs (0) 0 Alien Tech Used (0) 0 Bonus (0) 0 TOTAL SCORE: 746 Bonus ------- None Cogmind --------- Core Integrity 0/250 Matter 261/300 Energy 250/250 System Corruption 0% Temperature Cool (38) Movement Treading (160) Location -10/Mines Parts ------- > --- POWER (1) -------- Ion Engine > --- PROPULSION (2) --- Light Treads > --- UTILITY (2) ------ Medium Storage Unit Seismic Detector > --- WEAPON (2) ------- Medium Laser > --- INVENTORY (10) --- Small Storage Unit Improved Terrain Scanner Light Armor Plating Light Armor Plating Mining Laser Peak State ------------ > --- POWER ------------ Ion Engine > --- PROPULSION ------- Light Treads Light Treads > --- UTILITY ---------- Small Storage Unit Improved Terrain Scanner > --- WEAPON ----------- EM Pulse Gun EM Pulse Gun > --- INVENTORY -------- Aluminum Leg Aluminum Leg Wheel Compact Wheel Medium Laser Mining Laser [Rating: 9] Favorites ----------- Power Ion Engine Engine Ion Engine Propulsion Light Treads Treads Light Treads Utility Medium Storage Unit Device Seismic Detector Storage Medium Storage Unit Protection Light Armor Plating Weapon EM Pulse Gun Energy Gun EM Pulse Gun Launcher Grenade Launcher Build | -11 -10 -10 ------- Run | Yrd Mat Min Slots Evolved . | . . . Power . | . . . Propulsion . | . . . Utility . | . . . Weapon . | . . . Parts Attached 18 | 7 6 5 Power 1 | 1 . . Engine 1 | 1 . . Core . | . . . Reactor . | . . . Propulsion 2 | 2 . . Treads 2 | 2 . . Leg . | . . . Wheel . | . . . Hover . | . . . Flight . | . . . Utility 8 | 2 5 1 Device 2 | 1 . 1 Storage 3 | 1 2 . Processor . | . . . Hackware . | . . . Protection 3 | . 3 . Artifact . | . . . Weapon 7 | 2 1 4 Energy Gun 4 | 2 1 1 Energy Cannon . | . . . Ballistic Gun . | . . . Ballistic Cannon . | . . . Launcher 3 | . . 3 Special Weapon . | . . . Impact Weapon . | . . . Slashing Weapon . | . . . Piercing Weapon . | . . . Special Melee Weapon . | . . . Unidentified Prototypes . | . . . Parts Lost 6 | . . 6 Power . | . . . Propulsion 1 | . . 1 Utility . | . . . Weapon 5 | . . 5 Highest Loss Streak 4 | . . 4 To Critical Strikes . | . . . Average Slot Usage (%) 97 | . 98 97 Engine 14 | . 14 14 Treads 27 | . 28 27 Device 10 | . 5 14 Storage 13 | . 13 14 Protection 4 | . 9 . Energy Gun 16 | . 26 9 Launcher 9 | . . 16 Peak Build Rating 9 | 9 9 8 Average Rating 7 | 6 7 7 On Entrance 5 | . 9 8 Naked Turns . | . . . Heaviest Build 22 | 15 22 22 Greatest Support 40 | 40 40 40 Greatest Overweight (x) . | . . . Average Overweight (x) . | . . . Largest Inventory Capacity 10 | 8 10 10 Average Capacity 8 | 7 8 10 Most Carried 8 | 7 8 8 Average Carried 6 | 5 7 7 Final Capacity 10 | 8 10 10 Final Carried 8 | 7 8 5 Class Distribution -------------------- 100% | Mutant Dominant Class ---------------- Mutant | -10/Materials Mutant | -10/Mines Resources | -11 -10 -10 ----------- Run | Yrd Mat Min Matter Collected 388 | 270 48 70 Remotely . | . . . Salvage Created 574 | 312 71 191 Parts 47 | 29 8 10 Haulers Intercepted . | . . . Recyclers Shooed . | . . . Parts Field Recycled . | . . . Retrieved Matter . | . . . Parts Self-Destructed . | . . . Prevented . | . . . Kills | -11 -10 -10 ------- Run | Yrd Mat Min Combat Hostiles Destroyed 10 | . 5 5 Guns 6 | . 4 2 AOE 4 | . 1 3 Classes Destroyed 6 | 3 1 2 Worker 4 | 2 . 2 Tunneler 8 | 8 . . Recycler 1 | 1 . . Swarmer 5 | . 5 . Grunt 3 | . . 3 Assembled 2 | . . 2 Best Kill Streak 6 | 6 3 3 Combat Bots Only 3 | . 3 3 Max Kills in Single Turn 2 | 2 1 1 Gunslinging . | . . . Exploded 1 | . 1 1 Melee . | . . . Uniques/NPCs Destroyed . | . . . Combat | -11 -10 -10 -------- Run | Yrd Mat Min Hostile Shots Fired 72 | . 30 42 Missed 19 | . 8 11 Damage Taken 1083 | 32 205 846 Core 256 | . 6 250 Absorbed by Shields . | . . . Regen/Repaired (Parts) 32 | . 32 . Core Remaining (%) 100 | 100 . . Volleys Fired 36 | 15 7 14 Largest 2 | 2 2 2 Hottest 80 | 80 80 80 Shots Fired 68 | 30 14 24 Gun 61 | 30 14 17 Cannon . | . . . Launcher 7 | . . 7 Special . | . . . Kinetic . | . . . Thermal 3 | . . 3 Explosive 7 | . . 7 Electromagnetic 58 | 30 14 14 Robot Hit Streak 7 | 6 7 4 Robot Miss Streak 2 | 2 2 2 Penetration Max . | . . . Secondary Targets 1 | . . 1 Max Gunslinging Chain 1 | . . 1 Shots Hit Robots 40 | 19 8 13 Core Hits 29 | 11 6 12 Critical Kills . | . . . Critical Parts Destroyed . | . . . Critical Strikes . | . . . Melee Attacks . | . . . Impact . | . . . Slashing . | . . . Piercing . | . . . Sneak Attacks . | . . . Combat Hostiles . | . . . Follow-up Attacks . | . . . Damage Inflicted 759 | 308 179 272 Guns 525 | 268 104 153 Cannons . | . . . Explosions 234 | 40 75 119 Melee . | . . . Ramming . | . . . Kinetic . | . . . Thermal 176 | 40 75 61 Explosive 96 | . . 96 Electromagnetic 487 | 268 104 115 Impact . | . . . Slashing . | . . . Piercing . | . . . Highest Corruption . | . . . Average Corruption . | . . . Corruption Purged . | . . . Corruption Blocked . | . . . Overload Shots . | . . . Overflow Damage . | . . . Projectiles . | . . . Explosions . | . . . Melee . | . . . Knockbacks . | . . . Impact . | . . . Kinetic . | . . . Secondary . | . . . Self-Inflicted Damage 198 | 32 33 133 Shots 8 | 1 1 6 Rammed . | . . . Targets Rammed . | . . . Kicked . | . . . Crushed . | . . . Highest Temperature 174 | 72 154 174 Average Temperature 50 | 23 62 73 Received Heat Transfer 99 | . . 99 Siege Activations . | . . . Robots Corrupted . | . . . Combat Hostiles . | . . . Parts Fried 1 | 1 . . Impact Corruptions . | . . . Robots Melted . | . . . Combat Hostiles . | . . . Parts Melted . | . . . Heat Transferred 211 | . 50 161 Parts Sabotaged . | . . . Parts Stolen . | . . . Parts Stripped . | . . . Power Chain Reactions 3 | 1 1 1 Alert | -11 -10 -10 ------- Run | Yrd Mat Min Peak Influence 169 | 55 160 169 Initial 62 | . 35 62 Average 80 | 27 61 129 Maximum Alert Level . | . . . Low Security (%) 100 | 100 100 100 Level 1 . | . . . Level 2 . | . . . Level 3 . | . . . Level 4 . | . . . Level 5 . | . . . High Security . | . . . Max Security . | . . . Squads Dispatched . | . . . Investigation . | . . . Extermination . | . . . Reinforcement . | . . . Assault . | . . . Garrison . | . . . Intercept . | . . . Searches Triggered . | . . . Construction Impeded . | . . . Haulers Reinforced . | . . . Active Scanning Responses . | . . . Cargo Convoy Interrupts . | . . . Stealth | -11 -10 -10 --------- Run | Yrd Mat Min Distress Signals . | . . . Communications Jammed . | . . . Distress Signals . | . . . Times Spotted 14 | . 7 7 Peak Tracking Total 3 | . 3 3 Tactical Retreats 3 | . 1 2 Traps | -11 -10 -10 ------- Run | Yrd Mat Min Traps Triggered . | . . . Indirectly . | . . . Trap Hack Attempts . | . . . Triggered . | . . . Disarmed . | . . . Reprogrammed . | . . . Reused . | . . . Traps Extracted . | . . . Installed . | . . . Triggered . | . . . Machines | -11 -10 -10 ---------- Run | Yrd Mat Min Machines Disabled 1 | . . 1 Max in Single Turn 1 | . . 1 Machines Repaired . | . . . Machines Dismantled . | . . . Machines Sabotaged . | . . . Overloaded Fab Kills . | . . . Hacking | -11 -10 -10 --------- Run | Yrd Mat Min Machines Accessed 3 | . 3 . Terminals 2 | . 2 . Fabricators . | . . . Repair Stations 1 | . 1 . Recycling Units . | . . . Scanalyzers . | . . . Garrison Access . | . . . Total Hacks 10 | . 10 . Successful 4 | . 4 . Failed 6 | . 6 . Catastrophic 1 | . 1 . Database Lockouts . | . . . Manual 5 | . 5 . Terminals 8 | . 8 . Fabricators . | . . . Repair Stations 2 | . 2 . Recycling Units . | . . . Scanalyzers . | . . . Garrison Access . | . . . Terminal Hacks 1 | . 1 . Unreport Threat 1 | . 1 . Fabricator Hacks . | . . . Repair Station Hacks 2 | . 2 . Scan Component 1 | . 1 . Repair 1 | . 1 . Recycling Unit Hacks . | . . . Scanalyzer . | . . . Garrison Access Hacks . | . . . Unauthorized Hacks 1 | . 1 . Terminals 1 | . 1 . Operators 1 | . 1 . Fabricators . | . . . Repair Stations . | . . . Recycling Units . | . . . Scanalyzers . | . . . Garrison Access . | . . . Data Cores Recovered . | . . . Used . | . . . Hacking Detections 3 | . 3 . Full Trace Events . | . . . Feedback Events . | . . . Feedback Blocked . | . . . Robot Schematics Acquired . | . . . Robots Built . | . . . Authchips . | . . . Time . | . . . Total Robot Build Rating . | . . . Part Schematics Acquired . | . . . Parts Built . | . . . Authchips . | . . . Time . | . . . Total Part Build Rating . | . . . Parts Repaired 1 | . 1 . Time 26 | . 26 . Parts Recycled . | . . . Recycled Matter . | . . . Retrieved Matter . | . . . Retrieved Components . | . . . Parts Scanalyzed . | . . . Part Schematics Acquired . | . . . Parts Damaged . | . . . Bothacking | -11 -10 -10 ------------ Run | Yrd Mat Min Used RIF Installer . | . . . Robots Hacked . | . . . Non-combat . | . . . Combat . | . . . Robot Hacks Applied . | . . . Relay Couplers Released . | . . . Fabnet Peak Effective % . | . . . Robots Rewired . | . . . Allies Hacked . | . . . Hacks Repelled . | . . . Allies | -11 -10 -10 -------- Run | Yrd Mat Min Total Allies 1 | . . 1 Largest Group 1 | . . 1 Highest-Rated Group 31 | . . 31 Highest-Rated Ally 31 | . . 31 Total Orders . | . . . Ally Attacks 1 | . . 1 Total Damage . | . . . Kills . | . . . Allies Corrupted . | . . . Allies Melted . | . . . Intel | -11 -10 -10 ------- Run | Yrd Mat Min Robot Analysis Total . | . . . Derelict Logs Recovered 1 | . . 1 Drone Launches . | . . . Drone Recoveries . | . . . Exploration | -11 -10 -10 ------------- Run | Yrd Mat Min Turns Passed 978 | 266 307 405 Spaces Moved 528 | 135 168 225 Core 14 | 14 . . Treads 514 | 121 168 225 Legs . | . . . Wheels . | . . . Hover . | . . . Flight . | . . . Fastest Speed 50 | 50 160 160 Average Speed 157 | 148 160 160 Slowest Speed 160 | 160 160 160 Overloaded Moves . | . . . Propulsion Burnouts . | . . . Robots Hopped . | . . . Cave-ins Triggered . | . . . Exploration Rate (%) 25 | 7 25 44 Regions Visited 2 Branch Regions 1 Pre-discovered Areas 1 | . . 1 Known Exits Taken . | . . . Unknown Exits Taken 2 | 1 1 . Scrap Searched . | . . . Spaces Dug . | . . . Terrain Destroyed 65 | 2 6 57 Melee . | . . . Projectile . | . . . AOE 65 | 2 6 57 Terrain Rammed . | . . . Walls Destroyed . | . . . Machines Disabled . | . . . Actions | -11 -10 -10 --------- Run | Yrd Mat Min Total 607 | 170 192 245 Wait . | . . . Move 526 | 134 167 225 Hop . | . . . Pick Up 22 | 14 7 1 Fast Attach 1 | . 1 . Attach 11 | 7 . 4 Detach . | . . . Swap 6 | . 5 1 Drop 5 | . 5 . Fire 36 | 15 7 14 Melee . | . . . Ram . | . . . Kick . | . . . Crush . | . . . Escape Stasis . | . . . Rewire . | . . . Trap . | . . . Miscellaneous . | . . . Route ------- -11/Scrapyard -10/Materials -10/Mines History --------- Turn | Location | Event 11 | -11/Scrapyard | Discovered new exit (range 14) 267 | -11/Scrapyard | Entered Materials 306 | -10/Materials | Build established: Mutant 352 | -10/Materials | Repaired EM Pulse Gun 566 | -10/Materials | Discovered new exit (range 6) 574 | -10/Materials | Entered Mines 577 | -10/Mines | Assembled infested the area 737 | -10/Mines | Escorted by a lone wolf Derelict 748 | -10/Mines | YI-UF0 nonchalantly dropped a Grenade Launcher on the ground 909 | -10/Mines | Learned location of Zion (-6) 968 | -10/Mines | Core integrity fell below 50% 978 | -10/Mines | Core integrity fell below 20% 979 | -10/Mines | Destroyed by YI-UF0 with YI-UF0's Doublenader Last Messages --------------- of these parts." 00748_ YI-UF0 nonchalantly drops a Grenade Launcher on the ground. 00752_ Acquired Grenade Launcher. 00796_ as-94852 destroyed. 00800_ The unstable cave ceiling collapses. 00821_ YI-UF0 mumbles something. 00826_ The unstable cave ceiling collapses. 00909_ Acquired derelict log, extracted data. World map updated: -6/Zion. 00937_ YI-UF0 mumbles something. 00959_ YI-UF0: "Whaaaaaaaa!" 00960_ YI-UF0: "WHOMP!" 00964_ CD-HZ9(g): "Mission, incomplete...*fzzt*" 00964_ CD-HZ9(g) destroyed. 00965_ Acquired 51 matter. 00967_ Lgt. Treads destroyed. 00969_ Grenade Launcher destroyed. 00970_ The unstable cave ceiling collapses. 00975_ Grenade Launcher destroyed. Map ----- +----------------------------------------------------+ | ?????????????????????????????????????????????????? | | ?????????????????????????????????????????????????? | | ?????????????????????????????????????????????????? | | ?????????????????????????????????????????????????? | | ?????????????????????????????????????????????????? | | ?????????????????????????????????????????????????? | | ?????????????????????????????????????????????????? | | ?????????????????????????????????????????????????? | | ?????????????????????????????????????????????????? | | ?????????????????????????????????????????????????? | | ?????????????????????????????????????????????????? | | ?????????????????????????????????????????????????? | | ?????????????????????????????????????????????????? | | ????????????????##???????????????????????????????? | | ??????????????# ??????????????????????????????? | | ??????????????# * ?????????????????????????????? | | ?????????????# [ ?????????????????????????????? | | ?????????????? * ????????????????????????????? | | ??????????????? % #####???????????????????????? | | ???????????????? ###?????????????????????? | | ?????????????????? ##????????????????????? | | ??????????????????? ##???????????????????? | | ????????????????????# g ##??????????????????? | | ????????????????????# #??????????????????? | | ????????????????????# ####???????????????? | | ????????????????????# @ #???????????????? | | ???????????????????# ####?????????????? | | ???????????????????# #?????????????? | | ???????????????????## #????????????? | | #???????????????????# ### #????????????? | | # ??????????????????### #????????????? | | # ???????????????????### ## #### #????????????? | | # #####????????????????#### #???????????????????? | | ? ##??????????????????# #???????????????????? | | ?? ! ####???????????????# #???????????????????? | | #??# ##??????????????# #???????????????????? | | ##??# #??????????????# #???????????????????? | | #???# ! #???????#####??# #???????????????????? | | ##### ##?????## ##?# #???????????????????? | | #?????# #?# #???????????????????? | | #?????# ### ###?????????????????? | | ###### #?????## ## #?????????????????? | | ????# ##??????## ### ################??? | | ??# ##????????### ## ## | | ?# ! ##??####?????## ## ## """ """ """ """? | | ?# ##??## ##?????# ## """ """ """ "??? | | ### #####??## ##????# ##### """ """ """ """? | | #?###?####### ! ###??# #???# | | ##??### %= ##?## ##??# """ """ """ """? | | #### [* ## ##?# ##?# """ """ """ "??? | +----------------------------------------------------+ Best States ------------- Heat Dissipation 25 Energy Generation 10 Energy Capacity 250 Matter Stores 300 Matter Capacity 300 Sight Range 16 Terrain Scan Range 16 Terrain Scan Density 10 Armor Coverage 300 Evasion (%) 50 Recoil Reduction 2 Item Schematics ----------------- None Robot Schematics ------------------ None Fabricated ------------ Nothing Alien Tech Used ----------------- None Achievements -------------- None Challenges ------------ None Game ------ Seed ScanAbsorptionThermoblaster Manual? 0 Play Time 00:09:51 Cumulative 27.8 hours Start 2024.11.10 @ 18:03:00 End 2024.11.10 @ 18:12:35 Sessions 1 Manual Loads 0 Difficulty Rogue Special Mode None Game No. 63 Rogue 63 Adventurer 0 Explorer 0 Win Type - Total 0 Types 0/0/0/0/0/0/0/0/0 Lore% 12 Gallery% 21 Achievement% 21 Wizard Run 0 Options --------- Layout 1 ASCII 0 Keyboard 0 Movement Mouse Keybinds 0 Fullscreen 1 Font 24/Smallcaps Map View 50x40 Zoom Use 0% Tactical HUD 1 Map Filters NONE Filters NONE Steam 1 RUN: f12b0fcd-f1b9-4d99-a66d-3ee47382be75